bitfinex/quotes_BTCUSD_20260117
["timestamp","ask_amount","ask_price","bid_price","bid_amount"]
[1768635020919,4.974e-05,95140.0,95137.0,0.01051115]
[1768635021165,4.974e-05,95140.0,95136.0,0.01051126]
[1768635021365,4.974e-05,95140.0,95134.0,0.01051148]
[1768635021366,0.01056056,95140.0,95134.0,0.01051148]
[1768635021956,0.01056056,95140.0,95136.0,0.01051126]
[1768635022339,4.974e-05,95140.0,95136.0,0.01051126]
[1768635022710,4.974e-05,95140.0,95137.0,0.01051115]
[1768635022912,0.01056056,95140.0,95135.0,0.01051137]
[1768635023698,0.01051093,95139.0,95134.0,0.01051148]
[1768635023829,0.01056056,95140.0,95135.0,0.01051137]
[1768635024038,0.01051093,95139.0,95134.0,0.01051148]
[1768635024288,0.01051093,95139.0,95135.0,0.01051137]
[1768635024604,0.01056056,95140.0,95136.0,0.01051126]
[1768635024987,4.974e-05,95140.0,95137.0,0.01051115]
[1768635025367,4.974e-05,95140.0,95136.0,0.01051126]
[1768635025569,4.974e-05,95140.0,95137.0,0.01051115]
[1768635026748,4.974e-05,95140.0,95136.0,0.01051126]
[1768635027068,0.01056056,95140.0,95136.0,0.01051126]
[1768635027538,0.01051093,95139.0,95135.0,0.01051137]
[1768635029386,0.01051104,95138.0,95133.0,0.01051159]
[1768635029586,0.01051115,95137.0,95133.0,0.01051159]
[1768635029805,0.01051126,95136.0,95132.0,0.01051171]
[1768635030012,0.01051126,95136.0,95131.0,0.01051182]
[1768635030013,0.01051137,95135.0,95131.0,0.01051182]
[1768635030226,0.01051137,95135.0,95130.0,0.01051193]
[1768635030433,0.01051171,95132.0,95129.0,0.12736]
[1768635030719,0.01051171,95132.0,95125.0,0.04999504]
[1768635030720,0.01051193,95130.0,95125.0,0.13787248]
[1768635031167,0.01051204,95129.0,95125.0,0.13787248]
[1768635031370,0.01051171,95132.0,95128.0,0.01051215]
[1768635031575,0.01051171,95132.0,95127.0,0.01051226]
[1768635031726,0.01051182,95131.0,95126.0,0.01051237]
[1768635031936,0.01051182,95131.0,95127.0,0.01051226]
[1768635032427,0.01051171,95132.0,95127.0,0.01051226]
[1768635032824,0.01051171,95132.0,95128.0,0.01051215]
[1768635033468,0.01051182,95131.0,95127.0,0.01051226]
[1768635033904,0.01051182,95131.0,95126.0,0.01051237]
[1768635034126,0.01051182,95131.0,95127.0,0.01051226]
[1768635034347,0.01051171,95132.0,95128.0,0.01051215]
[1768635034562,0.01051182,95131.0,95127.0,0.01051226]
[1768635034952,0.01051182,95131.0,95126.0,0.01051237]
[1768635035359,0.01051171,95132.0,95127.0,0.01051226]
[1768635035937,0.01051171,95132.0,95128.0,0.01051215]
[1768635036374,0.01051159,95133.0,95129.0,0.01051204]
[1768635036575,0.01051159,95133.0,95128.0,0.01051215]
[1768635036781,0.01051159,95133.0,95129.0,0.01051204]
[1768635037198,0.01051159,95133.0,95128.0,0.01051215]
[1768635037457,0.01051182,95131.0,95127.0,0.01051226]
[1768635037658,0.01051171,95132.0,95127.0,0.01051226]
[1768635038982,0.01051182,95131.0,95127.0,0.01051226]
[1768635039380,0.01051193,95130.0,95126.0,0.01051237]
[1768635039598,0.01051182,95131.0,95126.0,0.01051237]
[1768635039766,0.01051182,95131.0,95127.0,0.01051226]
[1768635040495,0.01051171,95132.0,95127.0,0.01051226]
[1768635040699,0.01051193,95130.0,95126.0,0.01051237]
[1768635041133,0.01051148,95134.0,95128.0,0.01051215]
[1768635041330,0.01051148,95134.0,95130.0,0.01051193]
[1768635041525,0.01051137,95135.0,95130.0,0.01051193]
[1768635042412,0.01051148,95134.0,95129.0,0.01051204]
[1768635043040,0.01051148,95134.0,95130.0,0.01051193]
[1768635043388,0.01051137,95135.0,95130.0,0.01051193]
[1768635045169,0.01051137,95135.0,95131.0,0.01051182]
[1768635045339,0.04751569,95135.0,95132.0,0.01051171]
[1768635045770,0.01051159,95133.0,95127.0,0.01051226]
[1768635045991,0.06307027,95132.0,95125.0,0.05256222]
[1768635046171,0.0104212,95130.0,95126.0,0.01051237]
[1768635046562,0.01051182,95131.0,95126.0,0.01051237]
[1768635048142,0.01051182,95131.0,95124.0,0.01051093]
[1768635048143,0.0630719,95130.0,95124.0,0.01051093]
[1768635048505,0.01051226,95127.0,95124.0,0.01051093]
[1768635048729,0.01051248,95125.0,95122.0,0.12736]
[1768635048923,0.05256203,95126.0,95125.0,0.00502713]
[1768635049437,0.05256186,95126.0,95125.0,0.00502713]
[1768635049593,0.01051226,95127.0,95125.0,0.00502713]
[1768635050035,0.06307397,95127.0,95125.0,0.00502713]
[1768635050930,0.05256186,95126.0,95125.0,0.00502713]
[1768635051332,0.01051226,95127.0,95125.0,0.00502713]
[1768635051333,0.06307374,95127.0,95125.0,0.00502713]
[1768635051541,0.06307374,95127.0,95119.0,0.05256568]
[1768635051542,0.01051303,95120.0,95112.0,0.01051392]
[1768635051704,0.01051292,95121.0,95117.0,0.01051336]
[1768635052306,0.01051281,95122.0,95117.0,0.01051336]
[1768635052780,0.01051292,95121.0,95117.0,0.01051336]
[1768635053968,0.01051281,95122.0,95118.0,0.01051325]
[1768635054494,0.01051281,95122.0,95117.0,0.01051336]
[1768635054629,0.01051281,95122.0,95118.0,0.01051325]
[1768635054832,0.01051281,95122.0,95117.0,0.01051336]
[1768635055267,0.01051281,95122.0,95118.0,0.01051325]
[1768635056401,0.01051281,95122.0,95117.0,0.01051336]
[1768635057122,0.01051281,95122.0,95118.0,0.01051325]
[1768635057405,0.01051281,95122.0,95117.0,0.01051336]
[1768635057826,0.0105127,95123.0,95118.0,0.01051325]
[1768635057991,0.01051281,95122.0,95117.0,0.01051336]
[1768635058191,0.01051281,95122.0,95118.0,0.01051325]
[1768635060267,0.01051281,95122.0,95117.0,0.01051336]
[1768635060669,0.05769393,95125.0,95002.0,0.303309]
[1768635060670,0.04718145,95125.0,95111.0,0.1275199]
[1768635060905,0.04718145,95125.0,95112.0,0.01051392]
[1768635060906,0.01051347,95116.0,95112.0,0.01051392]
[1768635061225,0.01051325,95118.0,95113.0,0.0105138]
[1768635062175,0.01051336,95117.0,95113.0,0.0105138]
[1768635063103,0.01051325,95118.0,95113.0,0.0105138]
[1768635064065,0.01051314,95119.0,95114.0,0.01051369]
[1768635064267,0.0525643,95122.0,95116.0,0.01051347]
[1768635064268,0.01051281,95122.0,95116.0,0.01051347]
[1768635064468,0.01051292,95121.0,95117.0,0.01051336]
[1768635064831,0.01051281,95122.0,95117.0,0.01051336]
[1768635065074,0.01051259,95124.0,95120.0,0.01051303]
[1768635065299,0.01051259,95124.0,95119.0,0.01051314]
[1768635065501,0.0105127,95123.0,95118.0,0.01051325]
[1768635066831,0.0105127,95123.0,95119.0,0.01051314]
[1768635067248,0.01051259,95124.0,95119.0,0.01051314]
[1768635069017,0.0105127,95123.0,95119.0,0.01051314]
[1768635069213,0.0105127,95123.0,95118.0,0.01051325]
[1768635069420,0.01051281,95122.0,95118.0,0.01051325]
[1768635072016,0.0105127,95123.0,95119.0,0.01051314]
[1768635073624,0.01051281,95122.0,95116.0,0.01051347]
[1768635073830,0.01051281,95122.0,95117.0,0.01051336]
[1768635074065,0.01051281,95122.0,95118.0,0.01051325]
[1768635079906,0.0105127,95123.0,95118.0,0.01051325]
[1768635080327,0.06307647,95123.0,95116.0,0.01051347]
[1768635080745,0.01051281,95122.0,95117.0,0.01051336]
[1768635080953,0.01051281,95122.0,95117.0,0.06308011]
[1768635081337,0.01051281,95122.0,95117.0,0.01051336]
[1768635081954,0.0105127,95123.0,95118.0,0.01051325]
[1768635082103,0.01051281,95122.0,95117.0,0.01051336]
[1768635083354,0.01051281,95122.0,95113.0,0.0105138]
[1768635083355,0.01051281,95122.0,95115.0,0.01051358]
[1768635084367,0.01051281,95122.0,95117.0,0.01051336]
[1768635084712,0.01051281,95122.0,95118.0,0.01051325]
[1768635084919,0.01051292,95121.0,95116.0,0.01051347]
[1768635085130,0.01051325,95118.0,95114.0,0.01051369]
[1768635085328,0.01051336,95117.0,95111.0,0.01067393]
[1768635085537,0.01051336,95117.0,95112.0,0.01051392]
[1768635085962,0.01051347,95116.0,95111.0,0.01067393]
[1768635086161,0.01051347,95116.0,95112.0,0.01051392]
[1768635086581,0.01051347,95116.0,95111.0,0.01067393]
[1768635087069,0.01051347,95116.0,95112.0,0.01051392]
[1768635087827,0.01051347,95116.0,95111.0,0.01067393]
[1768635088019,0.01051336,95117.0,95112.0,0.01051392]
[1768635088213,0.01051347,95116.0,95112.0,0.01051392]
[1768635088641,0.01051336,95117.0,95112.0,0.01051392]
[1768635088865,0.01051336,95117.0,95113.0,0.0105138]
[1768635089267,0.01051325,95118.0,95112.0,0.06308347]
[1768635089465,0.01051336,95117.0,95113.0,0.0105138]
[1768635089667,0.01051314,95119.0,95114.0,0.01051369]
[1768635090115,0.06036408,95119.0,95112.0,0.01051392]
[1768635090411,0.01051325,95118.0,95112.0,0.01051392]
[1768635090619,0.01051347,95116.0,95112.0,0.01051392]
[1768635090820,0.01051358,95115.0,95111.0,0.0001599]
[1768635091895,0.01051369,95114.0,95111.0,0.0001599]
[1768635096759,0.01051358,95115.0,95111.0,0.0001599]
[1768635097134,0.06308126,95116.0,95111.0,0.0001599]
[1768635097135,0.01051347,95116.0,95111.0,0.01067393]
[1768635097575,0.01051369,95114.0,95111.0,0.0001599]
[1768635098721,0.01051358,95115.0,95111.0,0.0001599]
[1768635100176,0.01051369,95114.0,95111.0,0.0001599]
[1768635100501,0.01051358,95115.0,95111.0,0.0001599]
[1768635100830,0.01051358,95115.0,95111.0,0.01067393]
[1768635101920,0.01051358,95115.0,95111.0,0.0001599]
[1768635102500,0.01051358,95115.0,95111.0,0.01067393]
[1768635103152,0.01051369,95114.0,95111.0,0.0001599]
[1768635103551,0.01051358,95115.0,95111.0,0.0001599]
[1768635104893,0.01051369,95114.0,95111.0,0.0001599]
[1768635105721,0.0630825,95114.0,95111.0,0.0001599]
[1768635105925,0.0525696,95112.0,95111.0,0.0001599]
[1768635106239,0.05256914,95113.0,95111.0,0.0001599]
[1768635106879,0.01051369,95114.0,95111.0,0.0001599]
[1768635108220,0.01051358,95115.0,95111.0,0.0001599]
[1768635108774,0.01051358,95115.0,95111.0,0.01067393]
[1768635110466,0.01051347,95116.0,95112.0,0.01051392]
[1768635110931,0.05256622,95120.0,95113.0,0.0105138]
[1768635111078,0.01051336,95117.0,95113.0,0.0105138]
[1768635111468,0.01051325,95118.0,95114.0,0.01051369]
[1768635112303,0.01051314,95119.0,95114.0,0.01051369]
[1768635112501,0.01051314,95119.0,95115.0,0.01051358]
[1768635112750,0.01051325,95118.0,95113.0,0.0105138]
[1768635113904,0.01051336,95117.0,95113.0,0.0105138]
[1768635114064,0.01051336,95117.0,95112.0,0.01051392]
[1768635114457,0.01051347,95116.0,95112.0,0.01051392]
[1768635114820,0.01051358,95115.0,95111.0,0.01067393]
[1768635115309,0.01051347,95116.0,95111.0,0.01067393]
[1768635116282,0.01051347,95116.0,95112.0,0.01051392]
[1768635116536,0.01051336,95117.0,95112.0,0.01051392]
[1768635116944,0.01051358,95115.0,95111.0,0.0001599]
[1768635117373,0.01051369,95114.0,95111.0,0.0001599]
[1768635117600,0.01051358,95115.0,95111.0,0.0001599]
[1768635118847,0.01051369,95114.0,95111.0,0.0001599]
[1768635119293,0.01051358,95115.0,95111.0,0.0001599]
[1768635119443,0.01051358,95115.0,95111.0,0.01067393]
[1768635120213,0.01051347,95116.0,95111.0,0.01067393]
[1768635120424,0.01051336,95117.0,95112.0,0.01051392]
[1768635120632,0.01051336,95117.0,95111.0,0.0001599]
[1768635120633,0.01051369,95114.0,95111.0,0.0001599]
[1768635122087,0.01051358,95115.0,95111.0,0.0001599]
[1768635122792,0.01051369,95114.0,95111.0,0.0001599]
[1768635123003,0.06308223,95114.0,95111.0,0.0001599]
[1768635123157,0.01051469,95105.0,95100.0,0.01051524]
[1768635123315,0.01051469,95105.0,95096.0,0.01051568]
[1768635123316,0.0105148,95104.0,95099.0,0.13787535]
[1768635123527,0.0105148,95104.0,95100.0,0.01051524]
[1768635123813,0.01051469,95105.0,95101.0,0.01067503]
[1768635124020,0.01051458,95106.0,95101.0,0.01067503]
[1768635124224,0.01051447,95107.0,95102.0,0.01051502]
[1768635124662,0.01051447,95107.0,95101.0,0.01114852]
[1768635124663,0.01051458,95106.0,95101.0,0.01114852]
[1768635124869,0.01051458,95106.0,95102.0,0.01051502]
[1768635125074,0.01051447,95107.0,95102.0,0.01051502]
[1768635125274,0.01051447,95107.0,95103.0,0.01051491]
[1768635125477,0.05814579,95108.0,95103.0,0.01051491]
[1768635127512,0.05814579,95108.0,95104.0,0.0105148]
[1768635127727,0.05814579,95108.0,95103.0,0.01051491]
[1768635128065,0.01051447,95107.0,95103.0,0.01051491]
[1768635128271,0.05814579,95108.0,95103.0,0.01051491]
[1768635128477,0.01051447,95107.0,95103.0,0.01051491]
[1768635129342,0.05814579,95108.0,95103.0,0.01046955]
[1768635129570,0.04763143,95108.0,95104.0,0.0105148]
[1768635129783,0.01051414,95110.0,95104.0,0.0105148]
[1768635129991,0.01051414,95110.0,95104.0,0.06308867]
[1768635130160,0.05814546,95111.0,95106.0,0.01051458]
[1768635130714,0.01051414,95110.0,95106.0,0.01051458]
[1768635130920,0.01051447,95107.0,95102.0,0.01051502]
[1768635131126,0.01051425,95109.0,95104.0,0.0105148]
[1768635132094,0.01051436,95108.0,95104.0,0.0105148]
[1768635132862,0.01051436,95108.0,95103.0,0.01051491]
[1768635133056,0.01051436,95108.0,95104.0,0.0105148]
[1768635134611,0.01051425,95109.0,95104.0,0.0105148]
[1768635135089,0.01051414,95110.0,95105.0,0.01051469]
[1768635136036,0.01051425,95109.0,95105.0,0.01051469]
[1768635136340,0.01051425,95109.0,95105.0,0.01046933]
[1768635138184,0.01051425,95109.0,95101.0,0.05320798]
[1768635138185,0.01051447,95107.0,95101.0,0.00063339]
[1768635138396,0.01051458,95106.0,95102.0,0.01051502]
[1768635139136,0.01051458,95106.0,95101.0,0.01114852]
[1768635140080,0.01051447,95107.0,95102.0,0.01051502]
[1768635140439,0.01051458,95106.0,95102.0,0.01051502]
[1768635140621,0.01051458,95106.0,95101.0,0.01114852]
[1768635141286,0.01051469,95105.0,95101.0,0.01114852]
[1768635142080,0.01051447,95107.0,95101.0,0.01114852]
[1768635143013,0.01051447,95107.0,95101.0,0.01110316]
[1768635143213,0.01051469,95105.0,95101.0,0.0110578]
[1768635143726,0.01051469,95105.0,95101.0,0.00054267]
[1768635143727,0.0105148,95104.0,95101.0,0.00054267]
[1768635143926,0.01051469,95105.0,95101.0,0.00054267]
[1768635144925,0.0105148,95104.0,95101.0,0.00054267]
[1768635146121,0.01051469,95105.0,95101.0,0.00054267]
[1768635146286,0.01051469,95105.0,95101.0,0.0110578]
[1768635147044,0.0105148,95104.0,95101.0,0.00054267]
[1768635148211,0.0105148,95104.0,95101.0,0.00049731]
[1768635148897,0.06308821,95105.0,95101.0,0.00049731]
[1768635148898,0.01051469,95105.0,95101.0,0.00049731]
[1768635149186,0.01051469,95105.0,95101.0,0.01101244]
[1768635149843,0.01051458,95106.0,95102.0,0.01051502]
[1768635149959,0.01051458,95106.0,95102.0,0.01046966]
[1768635150769,0.01051469,95105.0,95101.0,0.01101244]
[1768635152120,0.01051469,95105.0,95101.0,0.01096708]
[1768635154130,0.0105148,95104.0,95101.0,0.00045195]
[1768635154336,0.01051469,95105.0,95101.0,0.00045195]
[1768635154741,0.01051458,95106.0,95101.0,0.01096708]
[1768635155758,0.01051447,95107.0,95102.0,0.01051502]
[1768635156059,0.01051447,95107.0,95103.0,0.01051491]
[1768635156664,0.01051458,95106.0,95102.0,0.01051502]
[1768635157144,0.01051458,95106.0,95102.0,0.01046966]
[1768635157932,0.01051458,95106.0,95101.0,0.00045195]
[1768635158679,0.01051447,95107.0,95103.0,0.01051491]
[1768635159309,0.01051447,95107.0,95102.0,0.01051502]
[1768635159642,0.01051436,95108.0,95103.0,0.01051491]
[1768635160484,0.01051447,95107.0,95103.0,0.01051491]
[1768635162462,0.01051458,95106.0,95102.0,0.01051502]
[1768635164375,0.01051447,95107.0,95102.0,0.01051502]
[1768635164579,0.01051447,95107.0,95103.0,0.01051491]
[1768635164800,0.01051447,95107.0,95103.0,0.01046955]
[1768635171720,0.01051447,95107.0,95103.0,0.01042419]
[1768635172396,0.01051436,95108.0,95103.0,0.01042419]
[1768635172977,0.04763143,95111.0,95104.0,0.0105148]
[1768635173178,0.05814546,95111.0,95106.0,0.01051458]
[1768635173382,0.01051425,95109.0,95104.0,0.0105148]
[1768635173980,0.01051425,95109.0,95105.0,0.01051469]
[1768635174681,0.01051414,95110.0,95105.0,0.01051469]
[1768635174883,0.05814546,95111.0,95106.0,0.01051458]
[1768635175695,0.01051414,95110.0,95106.0,0.01051458]
[1768635176760,0.01051414,95110.0,95105.0,0.01051469]
[1768635176965,0.01051414,95110.0,95106.0,0.01051458]
[1768635177912,0.01051414,95110.0,95105.0,0.01051469]
[1768635179009,0.01051425,95109.0,95105.0,0.01051469]
[1768635180410,0.01051458,95106.0,95097.0,0.01051557]
[1768635180602,0.01051458,95106.0,95100.0,0.05257583]
[1768635181055,0.01051458,95106.0,95101.0,0.00040659]
[1768635181281,0.01051458,95106.0,95102.0,0.01051502]
[1768635182051,0.01051436,95108.0,95103.0,0.01051491]
[1768635182469,0.04569499,95123.0,95112.0,0.01051392]
[1768635182683,0.01051369,95114.0,95106.0,0.06308737]
[1768635182893,0.01051369,95114.0,95109.0,0.01051425]
[1768635183530,0.01051369,95114.0,95110.0,0.01051414]
[1768635184393,0.01051369,95114.0,95109.0,0.01051425]
[1768635185525,0.01051392,95112.0,95107.0,0.01051447]
[1768635187192,0.01051392,95112.0,95107.0,0.01046912]
[1768635187411,0.01051392,95112.0,95108.0,0.01051436]
[1768635188374,0.01051392,95112.0,95107.0,0.01046912]
[1768635189228,0.01051392,95112.0,95106.0,0.06308742]
[1768635189229,0.01051436,95108.0,95104.0,0.0105148]
[1768635189443,0.01051436,95108.0,95102.0,0.01051502]
[1768635189651,0.06308623,95108.0,95102.0,0.01051502]
[1768635189899,0.01051458,95106.0,95102.0,0.01051502]
[1768635190341,0.01051469,95105.0,95101.0,0.01092172]
[1768635191056,0.01051458,95106.0,95102.0,0.01051502]
[1768635191703,0.01051447,95107.0,95102.0,0.01051502]
[1768635192115,0.01051447,95107.0,95103.0,0.01051491]
[1768635192364,0.01051458,95106.0,95102.0,0.01051502]
[1768635192695,0.01051436,95108.0,95103.0,0.01051491]
[1768635193097,0.05620946,95107.0,95102.0,0.01051502]
[1768635193298,0.01051447,95107.0,95103.0,0.01051491]
[1768635193496,0.01051447,95107.0,95102.0,0.01051502]
[1768635193724,0.01051447,95107.0,95103.0,0.01051491]
[1768635194673,0.05620968,95105.0,95100.0,0.01051524]
[1768635194810,0.01051469,95105.0,95100.0,0.01056258]
[1768635195259,0.01051469,95105.0,95101.0,0.01051513]
[1768635195685,0.01051458,95106.0,95101.0,0.01051513]
[1768635195976,0.01051447,95107.0,95102.0,0.01051502]
[1768635198905,0.01051458,95106.0,95102.0,0.01051502]
[1768635199160,0.01051458,95106.0,95101.0,0.01051513]
[1768635200357,0.01051458,95106.0,95102.0,0.01051502]
[1768635202231,0.01051458,95106.0,95101.0,0.01051513]
[1768635202916,0.01051458,95106.0,95102.0,0.01051502]
[1768635205197,0.01051469,95105.0,95101.0,0.01051513]
[1768635206444,0.01051458,95106.0,95101.0,0.01051513]
[1768635207013,0.01051469,95105.0,95100.0,0.01056258]
[1768635207846,0.01051491,95103.0,95100.0,4.734e-05]
[1768635208047,0.06308987,95103.0,95100.0,4.734e-05]
[1768635208269,0.01051491,95103.0,95100.0,4.734e-05]
[1768635208673,0.01051469,95105.0,95100.0,0.01056258]
[1768635210130,0.0105148,95104.0,95100.0,4.734e-05]
[1768635210384,0.01051469,95105.0,95100.0,0.01056258]
[1768635211060,0.0105148,95104.0,95100.0,4.734e-05]
[1768635211286,0.0105148,95104.0,95100.0,0.01056258]
[1768635212265,0.01051458,95106.0,95101.0,0.01051513]
[1768635214046,0.01051469,95105.0,95101.0,0.01051513]
[1768635214254,0.01051458,95106.0,95101.0,0.01051513]
[1768635214683,0.01051458,95106.0,95102.0,0.01051502]
[1768635214895,0.01051469,95105.0,95101.0,0.01051513]
[1768635215773,0.01051458,95106.0,95101.0,0.01051513]
[1768635216194,0.01051458,95106.0,95102.0,0.01051502]
[1768635217232,0.06308788,95106.0,95100.0,0.01056258]
[1768635217612,0.01051469,95105.0,95101.0,0.01051513]
[1768635218185,0.01051469,95105.0,95100.0,0.01056258]
[1768635218554,0.0105148,95104.0,95100.0,0.01056258]
[1768635219319,0.01051469,95105.0,95100.0,0.01056258]
[1768635220092,0.0105148,95104.0,95100.0,0.01056258]
[1768635222528,0.01051491,95103.0,95100.0,4.734e-05]
[1768635224657,0.0105148,95104.0,95100.0,4.734e-05]
[1768635225309,0.0105148,95104.0,95100.0,0.01056258]
[1768635226864,0.01051469,95105.0,95100.0,0.01056258]
[1768635227009,0.01051469,95105.0,95101.0,0.01051513]
[1768635228795,0.01051469,95105.0,95100.0,0.01056258]
[1768635229000,0.0105148,95104.0,95100.0,0.01056258]
[1768635229254,0.0105148,95104.0,95100.0,4.734e-05]
[1768635229813,0.01051469,95105.0,95100.0,0.01056258]
[1768635230018,0.01051469,95105.0,95101.0,0.01051513]
[1768635230770,0.01051458,95106.0,95101.0,0.01051513]
[1768635230986,0.01051469,95105.0,95101.0,0.01051513]
[1768635231838,0.01051458,95106.0,95101.0,0.01051513]
[1768635234673,0.01051469,95105.0,95101.0,0.01051513]
[1768635235263,0.01051458,95106.0,95101.0,0.01051513]
[1768635235594,0.01051469,95105.0,95101.0,0.01051513]
[1768635236397,0.01051491,95103.0,95100.0,4.734e-05]
[1768635236597,0.01051469,95105.0,95100.0,4.734e-05]
[1768635236777,0.0105148,95104.0,95100.0,0.01056258]
[1768635239740,0.01051458,95106.0,95101.0,0.01051513]
[1768635239905,0.01051469,95105.0,95100.0,0.01056258]
[1768635240436,0.0105148,95104.0,95100.0,0.01056258]
[1768635240815,0.01051469,95105.0,95100.0,0.01056258]
[1768635241485,0.01051469,95105.0,95101.0,0.01051513]
[1768635242130,0.01051469,95105.0,95100.0,0.01056258]
[1768635243053,0.01051469,95105.0,95101.0,0.01051513]
[1768635243451,0.01051469,95105.0,95100.0,4.734e-05]
[1768635243670,0.0105148,95104.0,95100.0,0.01056258]
[1768635244764,0.01051469,95105.0,95101.0,0.01051513]
[1768635245288,0.0105148,95104.0,95100.0,4.734e-05]
[1768635245813,0.0105148,95104.0,95100.0,0.01056258]
[1768635246020,0.0105148,95104.0,95100.0,0.01048423]
[1768635246437,0.01051469,95105.0,95100.0,0.01048423]
[1768635247031,0.01051469,95105.0,95101.0,0.01051513]
[1768635247851,0.01051469,95105.0,95100.0,0.01051524]
[1768635249401,0.01051469,95105.0,95099.0,0.01051535]
[1768635249602,5.472e-05,95105.0,95101.0,0.01051513]
[1768635250132,0.01056941,95105.0,95101.0,0.01051513]
[1768635250309,0.0105148,95104.0,95100.0,0.01051524]
[1768635250512,0.01056941,95105.0,95101.0,0.01051513]
[1768635250707,0.01051491,95103.0,95099.0,0.01051535]
[1768635251129,0.0105148,95104.0,95099.0,0.01051535]
[1768635251332,0.01051491,95103.0,95099.0,0.01051535]
[1768635251535,0.0105148,95104.0,95099.0,0.01051535]
[1768635251759,0.01056941,95105.0,95100.0,0.01051524]
[1768635251972,5.472e-05,95105.0,95101.0,0.01051513]
[1768635252382,0.01056941,95105.0,95100.0,0.01051524]
[1768635252564,0.0105148,95104.0,95099.0,0.01051535]
[1768635252726,0.01056941,95105.0,95101.0,0.01051513]
[1768635253100,0.01056941,95105.0,95100.0,0.01051524]
[1768635253276,5.472e-05,95105.0,95101.0,0.01051513]
[1768635254218,0.01056941,95105.0,95100.0,0.01051524]
[1768635254425,0.01056941,95105.0,95101.0,0.01051513]
[1768635254888,0.01056941,95105.0,95100.0,0.01051524]
[1768635256996,0.01056941,95105.0,95101.0,0.01051513]
[1768635257157,0.01056941,95105.0,95099.0,0.01051535]
[1768635257368,0.0105148,95104.0,95099.0,0.01051535]
[1768635257564,0.01056941,95105.0,95100.0,0.01051524]
[1768635258201,0.0105148,95104.0,95100.0,0.01051524]
[1768635258384,0.01056941,95105.0,95100.0,0.01051524]
[1768635260295,0.01056941,95105.0,95100.0,0.01043687]
[1768635260447,0.01056941,95105.0,95101.0,0.01051513]
[1768635261785,5.472e-05,95105.0,95101.0,0.01051513]
[1768635262193,0.0105148,95104.0,95100.0,0.01051524]
[1768635262393,5.472e-05,95105.0,95100.0,0.01051524]
[1768635262600,0.01056941,95105.0,95100.0,0.01051524]
[1768635263378,5.472e-05,95105.0,95101.0,0.01051513]
[1768635263671,0.01056941,95105.0,95101.0,0.01051513]
[1768635263916,0.01056941,95105.0,95100.0,0.01051524]
[1768635264103,5.472e-05,95105.0,95101.0,0.01051513]
[1768635264252,0.01056941,95105.0,95100.0,0.01051524]
[1768635264449,0.01051491,95103.0,95099.0,0.01051535]
[1768635264815,0.01056941,95105.0,95100.0,0.01051524]
[1768635265140,0.0105148,95104.0,95099.0,0.01051535]
[1768635265587,0.0105148,95104.0,95100.0,0.01051524]
[1768635266244,0.01056941,95105.0,95100.0,0.01051524]
[1768635266476,0.01051491,95103.0,95099.0,0.01051535]
[1768635267023,0.0105148,95104.0,95100.0,0.01051524]
[1768635267908,0.01056941,95105.0,95100.0,0.01051524]
[1768635270523,0.01056941,95105.0,95101.0,0.01051513]
[1768635270997,0.01056941,95105.0,95099.0,0.01051535]
[1768635271203,0.06314328,95105.0,95099.0,0.01051535]
[1768635271821,0.0105148,95104.0,95100.0,0.01051524]
[1768635272398,0.01056941,95105.0,95100.0,0.01051524]
[1768635273090,0.0105148,95104.0,95100.0,0.01051524]
[1768635274169,0.01056941,95105.0,95100.0,0.01051524]
[1768635274689,0.0105148,95104.0,95100.0,0.01051524]
[1768635275187,0.0105148,95104.0,95099.0,0.01051535]
[1768635275567,0.01051491,95103.0,95098.0,0.01051546]
[1768635277010,0.01051502,95102.0,95098.0,0.01051546]
[1768635277166,0.01051513,95101.0,95097.0,0.01051557]
[1768635277386,0.01051502,95102.0,95097.0,0.01051557]
[1768635277746,0.0105148,95104.0,95099.0,0.01051535]
[1768635278025,0.01042408,95104.0,95099.0,0.01051535]
[1768635278676,0.01056941,95105.0,95100.0,0.01051524]
[1768635279214,0.0105148,95104.0,95100.0,0.01051524]
[1768635280223,0.01056941,95105.0,95100.0,0.01051524]
[1768635280363,0.0105148,95104.0,95100.0,0.01051524]
[1768635280548,0.0105148,95104.0,95099.0,0.01051535]
[1768635280757,0.01056941,95105.0,95100.0,0.01051524]
[1768635281316,0.0105148,95104.0,95100.0,0.01051524]
[1768635282671,0.01056941,95105.0,95100.0,0.01051524]
[1768635282911,0.0105148,95104.0,95100.0,0.01051524]
[1768635283973,0.0105148,95104.0,95099.0,0.01051535]
[1768635284153,0.0105148,95104.0,95100.0,0.01051524]
[1768635284832,0.01051491,95103.0,95098.0,0.01051546]
[1768635285038,0.06308896,95104.0,95099.0,0.01051535]
[1768635285039,0.0105148,95104.0,95099.0,0.01051535]
[1768635286176,0.0105148,95104.0,95098.0,0.01051546]
[1768635286379,0.01051491,95103.0,95099.0,0.01051535]
[1768635290048,0.01051502,95102.0,95097.0,0.01051557]
[1768635290459,0.01051502,95102.0,95098.0,0.01051546]
[1768635290614,0.01051491,95103.0,95098.0,0.01051546]
[1768635291129,0.01051502,95102.0,95095.0,0.05257849]
[1768635291338,0.01051524,95100.0,95094.0,0.12788655]
[1768635291542,0.01051524,95100.0,95094.0,0.00048655]
[1768635291543,0.01051546,95098.0,95094.0,0.00048655]
[1768635291744,0.05257898,95096.0,95094.0,0.00048655]
[1768635292107,0.01051557,95097.0,95094.0,0.00048655]
[1768635292306,0.05257869,95096.0,95094.0,0.00048655]
[1768635292536,0.06309355,95097.0,95094.0,0.00048655]
[1768635293833,0.05257865,95096.0,95094.0,0.00048655]
[1768635294034,0.06309355,95097.0,95094.0,0.00048655]
[1768635294673,0.05257845,95096.0,95094.0,0.00048655]
[1768635295284,0.06309355,95097.0,95094.0,0.00048655]
[1768635296053,0.01051557,95097.0,95094.0,0.00048655]
[1768635296739,0.06309382,95097.0,95094.0,0.00048655]
[1768635297654,0.01051557,95097.0,95094.0,0.00048655]
[1768635299134,0.06309379,95097.0,95094.0,0.00048655]
[1768635299279,0.01051557,95097.0,95094.0,0.00048655]
[1768635300237,0.06309362,95097.0,95094.0,0.00048655]
[1768635300687,0.01051557,95097.0,95094.0,0.00048655]
[1768635301550,0.06309392,95097.0,95094.0,0.00048655]
[1768635301752,0.0525787,95096.0,95094.0,0.00048655]
[1768635301962,0.06309392,95097.0,95094.0,0.00048655]
[1768635302130,0.01051557,95097.0,95094.0,0.00048655]
[1768635304055,0.06309399,95097.0,95094.0,0.00048655]
[1768635304866,0.01051557,95097.0,95094.0,0.00048655]
[1768635311567,0.01051546,95098.0,95094.0,0.01100246]
[1768635313721,0.01051535,95099.0,95094.0,0.01100246]
[1768635315456,0.01051546,95098.0,95094.0,0.01100246]
[1768635315863,0.01051546,95098.0,95094.0,0.00048655]
[1768635316248,0.01051557,95097.0,95094.0,0.00048655]
[1768635318283,0.01051546,95098.0,95094.0,0.00048655]
[1768635318515,0.01051546,95098.0,95094.0,0.01100246]
[1768635318742,0.01051546,95098.0,95094.0,0.00048655]
[1768635319837,0.01051546,95098.0,95094.0,0.01100246]
[1768635320440,0.01051546,95098.0,95092.0,0.0513409]
[1768635321016,0.01051535,95099.0,95095.0,0.01051579]
[1768635321223,0.01051535,95099.0,95094.0,0.01051591]
[1768635321430,0.01051535,95099.0,95095.0,0.01051579]
[1768635325152,0.01051546,95098.0,95093.0,0.01051602]